[Event "December 5 Early 2023"]
[Site "https://www.chess.com"]
[Date "2023.12.05"]
[Round "1"]
[White "Nakamura, Hikaru"]
[Black "Cervantes Landeiro, Thalia"]
[Result "1-0"]
[Board "1"]
[TimeControl "180+1"]
[WhiteFideId "2016192"]
[BlackFideId "3520498"]
[WhiteElo "3256"]
[BlackElo "2534"]
[WhiteTeam "USA"]
[BlackTeam "USA"]
[WhiteClock "0:01:17"]
[BlackClock "0:00:00"]

1. Nf3 {[%clk 0:03:00]}  d5 {[%clk 0:02:59]} 2. d3 {[%clk 0:02:52]}  Nf6 {[%clk 0:02:58]} 3. Nbd2 {[%clk 0:02:52]}  c5 {[%clk 0:02:55]} 4. e4 {[%clk 0:02:51]}  Nc6 {[%clk 0:02:55]} 5. g3 {[%clk 0:02:48]}  g6 {[%clk 0:02:54]} 6. Bg2 {[%clk 0:02:46]}  Bg7 {[%clk 0:02:54]} 7. O-O {[%clk 0:02:45]}  O-O {[%clk 0:02:52]} 8. Re1 {[%clk 0:02:44]}  dxe4 {[%clk 0:02:47]} 9. dxe4 {[%clk 0:02:40]}  Bg4 {[%clk 0:02:45]} 10. h3 {[%clk 0:02:40]}  Bxf3 {[%clk 0:02:45]} 11. Qxf3 {[%clk 0:02:40]}  Qc7 {[%clk 0:02:40]} 12. Qe2 {[%clk 0:02:36]}  Nd4 {[%clk 0:02:33]} 13. Qd1 {[%clk 0:02:36]}  Rad8 {[%clk 0:02:28]} 14. c3 {[%clk 0:02:36]}  Nc6 {[%clk 0:02:27]} 15. f4 {[%clk 0:02:32]}  e5 {[%clk 0:02:22]} 16. Qf3 {[%clk 0:02:32]}  exf4 {[%clk 0:02:06]} 17. gxf4 {[%clk 0:02:33]}  Nh5 {[%clk 0:02:03]} 18. Nf1 {[%clk 0:02:26]}  c4 {[%clk 0:02:00]} 19. e5 {[%clk 0:02:22]}  Rd3 {[%clk 0:01:58]} 20. Qf2 {[%clk 0:02:19]}  Ne7 {[%clk 0:01:43]} 21. Be3 {[%clk 0:02:05]}  Nf5 {[%clk 0:01:42]} 22. Be4 {[%clk 0:02:03]}  Rxe3 {[%clk 0:00:59]} 23. Nxe3 {[%clk 0:01:57]}  Nxe3 {[%clk 0:00:59]} 24. Rxe3 {[%clk 0:01:57]}  Rd8 {[%clk 0:00:54]} 25. Rf1 {[%clk 0:01:49]}  Bf8 {[%clk 0:00:51]} 26. Kh2 {[%clk 0:01:37]}  Bc5 {[%clk 0:00:50]} 27. Qe2 {[%clk 0:01:38]}  Bxe3 {[%clk 0:00:49]} 28. Qxe3 {[%clk 0:01:39]}  Qd7 {[%clk 0:00:48]} 29. Rf2 {[%clk 0:01:38]}  b6 {[%clk 0:00:29]} 30. f5 {[%clk 0:01:38]}  Qc7 {[%clk 0:00:28]} 31. Bf3 {[%clk 0:01:38]}  Ng7 {[%clk 0:00:22]} 32. fxg6 {[%clk 0:01:35]}  hxg6 {[%clk 0:00:21]} 33. Bg4 {[%clk 0:01:32]}  Re8 {[%clk 0:00:21]} 34. Re2 {[%clk 0:01:32]}  Ne6 {[%clk 0:00:16]} 35. Qg3 {[%clk 0:01:31]}  Nc5 {[%clk 0:00:16]} 36. h4 {[%clk 0:01:28]}  Nd3 {[%clk 0:00:16]} 37. e6 {[%clk 0:01:29]}  Qxg3+ {[%clk 0:00:15]} 38. Kxg3 {[%clk 0:01:30]}  fxe6 {[%clk 0:00:15]} 39. Rxe6 {[%clk 0:01:22]}  Rxe6 {[%clk 0:00:15]} 40. Bxe6+ {[%clk 0:01:23]}  Kg7 {[%clk 0:00:16]} 41. b4 {[%clk 0:01:22]}  cxb3 {[%clk 0:00:15]} 42. axb3 {[%clk 0:01:23]}  Nc5 {[%clk 0:00:15]} 43. Bd5 {[%clk 0:01:24]}  Kf6 {[%clk 0:00:14]} 44. Kf4 {[%clk 0:01:24]}  a5 {[%clk 0:00:14]} 45. Ke3 {[%clk 0:01:22]}  Ke5 {[%clk 0:00:14]} 46. Bf7 {[%clk 0:01:22]}  Kf6 {[%clk 0:00:13]} 47. Be8 {[%clk 0:01:22]}  Nxb3 {[%clk 0:00:12]} 48. Kd3 {[%clk 0:01:23]}  Nc5+ {[%clk 0:00:12]} 49. Kc4 {[%clk 0:01:23]}  Ne4 {[%clk 0:00:12]} 50. Ba4 {[%clk 0:01:20]}  Ke5 {[%clk 0:00:10]} 51. Bc2 {[%clk 0:01:18]}  Kf4 {[%clk 0:00:08]} 52. Kd4 {[%clk 0:01:18]}  Ng3 {[%clk 0:00:04]} 53. Bxg6 {[%clk 0:01:18]}  Ne2+ {[%clk 0:00:04]} 54. Kd3 {[%clk 0:01:17]}  Nxc3 {[%clk 0:00:00]} 55. Kxc3 {[%clk 0:01:17]} 1-0

[Event "December 5 Early 2023"]
[Site "https://www.chess.com"]
[Date "2023.12.05"]
[Round "1"]
[White "Khamdamova, Afruza"]
[Black "Naroditsky, Daniel"]
[Result "0-1"]
[Board "2"]
[TimeControl "180+1"]
[WhiteFideId "14210444"]
[BlackFideId "2026961"]
[WhiteElo "2534"]
[BlackElo "3170"]
[WhiteTeam "UZB"]
[BlackTeam "USA"]
[WhiteClock "0:00:00"]
[BlackClock "0:00:05"]

1. e4 {[%clk 0:03:00]}  c5 {[%clk 0:03:00]} 2. Nf3 {[%clk 0:03:01]}  d6 {[%clk 0:03:01]} 3. d4 {[%clk 0:03:02]}  cxd4 {[%clk 0:03:02]} 4. Nxd4 {[%clk 0:03:02]}  Nf6 {[%clk 0:03:02]} 5. Nc3 {[%clk 0:03:02]}  a6 {[%clk 0:03:03]} 6. Bg5 {[%clk 0:03:03]}  e6 {[%clk 0:03:02]} 7. Qe2 {[%clk 0:03:03]}  Nbd7 {[%clk 0:02:58]} 8. O-O-O {[%clk 0:03:03]}  Qc7 {[%clk 0:02:57]} 9. f4 {[%clk 0:03:02]}  Be7 {[%clk 0:02:49]} 10. Kb1 {[%clk 0:02:52]}  b5 {[%clk 0:02:42]} 11. a3 {[%clk 0:02:52]}  Bb7 {[%clk 0:02:42]} 12. g4 {[%clk 0:02:48]}  Nb6 {[%clk 0:02:09]} 13. Bg2 {[%clk 0:02:36]}  Rc8 {[%clk 0:02:07]} 14. Bxf6 {[%clk 0:02:09]}  gxf6 {[%clk 0:02:02]} 15. f5 {[%clk 0:02:05]}  e5 {[%clk 0:02:00]} 16. Nb3 {[%clk 0:02:04]}  Nc4 {[%clk 0:01:11]} 17. Nd5 {[%clk 0:01:53]}  Bxd5 {[%clk 0:01:12]} 18. Rxd5 {[%clk 0:01:54]}  Nb6 {[%clk 0:01:12]} 19. Rd2 {[%clk 0:01:50]}  Na4 {[%clk 0:01:12]} 20. Rd5 {[%clk 0:01:26]}  Qc3 {[%clk 0:01:07]} 21. bxc3 {[%clk 0:01:15]}  Nxc3+ {[%clk 0:01:07]} 22. Kb2 {[%clk 0:01:15]}  Nxe2 {[%clk 0:01:08]} 23. Bf3 {[%clk 0:01:00]}  Nc3 {[%clk 0:00:53]} 24. Rd3 {[%clk 0:00:51]}  Na4+ {[%clk 0:00:53]} 25. Kb1 {[%clk 0:00:52]}  O-O {[%clk 0:00:45]} 26. h4 {[%clk 0:00:48]}  Kg7 {[%clk 0:00:38]} 27. Rh2 {[%clk 0:00:46]}  Rc7 {[%clk 0:00:36]} 28. Rg2 {[%clk 0:00:36]}  h6 {[%clk 0:00:36]} 29. Nc1 {[%clk 0:00:22]}  Rfc8 {[%clk 0:00:35]} 30. Na2 {[%clk 0:00:21]}  a5 {[%clk 0:00:27]} 31. Rb3 {[%clk 0:00:21]}  Rc5 {[%clk 0:00:14]} 32. Rd2 {[%clk 0:00:20]}  Nb6 {[%clk 0:00:13]} 33. Be2 {[%clk 0:00:19]}  Nc4 {[%clk 0:00:09]} 34. Rd5 {[%clk 0:00:16]}  Rxd5 {[%clk 0:00:07]} 35. exd5 {[%clk 0:00:16]}  Nd2+ {[%clk 0:00:08]} 36. Kb2 {[%clk 0:00:16]}  Nxb3 {[%clk 0:00:09]} 37. cxb3 {[%clk 0:00:15]}  Rc5 {[%clk 0:00:07]} 38. Bf3 {[%clk 0:00:15]}  h5 {[%clk 0:00:04]} 39. gxh5 {[%clk 0:00:13]}  Bd8 {[%clk 0:00:04]} 40. Nc3 {[%clk 0:00:12]}  Bb6 {[%clk 0:00:02]} 41. Be4 {[%clk 0:00:06]}  b4 {[%clk 0:00:02]} 42. axb4 {[%clk 0:00:06]}  axb4 {[%clk 0:00:03]} 43. Na4 {[%clk 0:00:06]}  Rb5 {[%clk 0:00:03]} 44. Bd3 {[%clk 0:00:07]}  Bd4+ {[%clk 0:00:04]} 45. Kc2 {[%clk 0:00:07]}  Rxd5 {[%clk 0:00:04]} 46. Bc4 {[%clk 0:00:07]}  Ra5 {[%clk 0:00:05]} 47. Bd3 {[%clk 0:00:00]}  d5 {[%clk 0:00:05]} 0-1

[Event "December 5 Early 2023"]
[Site "https://www.chess.com"]
[Date "2023.12.05"]
[Round "1"]
[White "Lewicki, Miroslaw"]
[Black "Andreikin, Dmitry"]
[Result "0-1"]
[Board "4"]
[TimeControl "180+1"]
[WhiteFideId "1113380"]
[BlackFideId "4158814"]
[WhiteElo "2531"]
[BlackElo "3091"]
[WhiteTeam "POL"]
[BlackTeam "FID"]
[WhiteClock "0:00:00"]
[BlackClock "0:00:10"]

1. g3 {[%clk 0:03:00]}  d5 {[%clk 0:02:59]} 2. Bg2 {[%clk 0:03:01]}  Nf6 {[%clk 0:03:00]} 3. Nf3 {[%clk 0:02:59]}  Nbd7 {[%clk 0:02:56]} 4. d4 {[%clk 0:02:59]}  Nb6 {[%clk 0:02:56]} 5. O-O {[%clk 0:02:58]}  Bf5 {[%clk 0:02:56]} 6. b3 {[%clk 0:02:52]}  c6 {[%clk 0:02:55]} 7. Nbd2 {[%clk 0:02:50]}  h6 {[%clk 0:02:54]} 8. c4 {[%clk 0:02:50]}  e6 {[%clk 0:02:53]} 9. Bb2 {[%clk 0:02:50]}  Be7 {[%clk 0:02:53]} 10. Re1 {[%clk 0:02:50]}  O-O {[%clk 0:02:53]} 11. Ne5 {[%clk 0:02:46]}  a5 {[%clk 0:02:52]} 12. a3 {[%clk 0:02:37]}  Bh7 {[%clk 0:02:46]} 13. e4 {[%clk 0:02:34]}  a4 {[%clk 0:02:40]} 14. exd5 {[%clk 0:02:22]}  exd5 {[%clk 0:02:37]} 15. c5 {[%clk 0:02:21]}  Nbd7 {[%clk 0:02:36]} 16. b4 {[%clk 0:02:20]}  Re8 {[%clk 0:02:33]} 17. Bh3 {[%clk 0:02:16]}  Nf8 {[%clk 0:02:16]} 18. Nb1 {[%clk 0:01:58]}  Ne4 {[%clk 0:02:14]} 19. f3 {[%clk 0:01:57]}  Ng5 {[%clk 0:02:12]} 20. Bg2 {[%clk 0:01:52]}  Nd7 {[%clk 0:02:04]} 21. Nc3 {[%clk 0:01:41]}  Nxe5 {[%clk 0:02:04]} 22. dxe5 {[%clk 0:01:42]}  d4 {[%clk 0:01:46]} 23. Nxa4 {[%clk 0:01:40]}  d3 {[%clk 0:01:46]} 24. Nb6 {[%clk 0:01:38]}  Rb8 {[%clk 0:01:43]} 25. f4 {[%clk 0:01:26]}  Ne6 {[%clk 0:01:38]} 26. Nc4 {[%clk 0:01:12]}  Nd4 {[%clk 0:01:33]} 27. Nd6 {[%clk 0:00:45]}  Nc2 {[%clk 0:01:32]} 28. Nxe8 {[%clk 0:00:44]}  Qxe8 {[%clk 0:01:32]} 29. Qd2 {[%clk 0:00:45]}  Qd8 {[%clk 0:01:14]} 30. Be4 {[%clk 0:00:41]}  Bxe4 {[%clk 0:01:04]} 31. Rxe4 {[%clk 0:00:40]}  Qd5 {[%clk 0:01:00]} 32. Rae1 {[%clk 0:00:38]}  Rd8 {[%clk 0:00:54]} 33. e6 {[%clk 0:00:31]}  f5 {[%clk 0:00:33]} 34. Re5 {[%clk 0:00:28]}  Qb3 {[%clk 0:00:34]} 35. Qc3 {[%clk 0:00:21]}  Qxc3 {[%clk 0:00:24]} 36. Bxc3 {[%clk 0:00:22]}  Bf6 {[%clk 0:00:22]} 37. Rd1 {[%clk 0:00:22]}  Bxe5 {[%clk 0:00:21]} 38. Bxe5 {[%clk 0:00:20]}  Ne3 {[%clk 0:00:18]} 39. e7 {[%clk 0:00:21]}  Re8 {[%clk 0:00:17]} 40. Rxd3 {[%clk 0:00:21]}  Nd5 {[%clk 0:00:14]} 41. Bd6 {[%clk 0:00:16]}  Kf7 {[%clk 0:00:15]} 42. b5 {[%clk 0:00:12]}  Ra8 {[%clk 0:00:13]} 43. Rxd5 {[%clk 0:00:03]}  cxd5 {[%clk 0:00:13]} 44. b6 {[%clk 0:00:04]}  Rxa3 {[%clk 0:00:05]} 45. c6 {[%clk 0:00:04]}  Ra1+ {[%clk 0:00:05]} 46. Kg2 {[%clk 0:00:04]}  bxc6 {[%clk 0:00:05]} 47. b7 {[%clk 0:00:05]}  Rb1 {[%clk 0:00:06]} 48. b8=Q {[%clk 0:00:05]}  Rxb8 {[%clk 0:00:07]} 49. Bxb8 {[%clk 0:00:05]}  Kxe7 {[%clk 0:00:07]} 50. Be5 {[%clk 0:00:06]}  g5 {[%clk 0:00:06]} 51. Kf3 {[%clk 0:00:05]}  c5 {[%clk 0:00:06]} 52. Bg7 {[%clk 0:00:04]}  g4+ {[%clk 0:00:06]} 53. Ke3 {[%clk 0:00:04]}  h5 {[%clk 0:00:07]} 54. Be5 {[%clk 0:00:05]}  Kd7 {[%clk 0:00:07]} 55. Kd3 {[%clk 0:00:05]}  Kc6 {[%clk 0:00:08]} 56. Kc3 {[%clk 0:00:06]}  Kb5 {[%clk 0:00:09]} 57. Bd6 {[%clk 0:00:06]}  Kc6 {[%clk 0:00:09]} 58. Bf8 {[%clk 0:00:07]}  Kb5 {[%clk 0:00:09]} 59. Kb3 {[%clk 0:00:07]}  d4 {[%clk 0:00:09]} 60. Be7 {[%clk 0:00:03]}  c4+ {[%clk 0:00:08]} 61. Kc2 {[%clk 0:00:03]}  Kc6 {[%clk 0:00:08]} 62. Kd2 {[%clk 0:00:02]}  Kd5 {[%clk 0:00:09]} 63. Bf6 {[%clk 0:00:02]}  Ke4 {[%clk 0:00:09]} 64. Ke2 {[%clk 0:00:03]}  c3 {[%clk 0:00:09]} 65. Bg7 {[%clk 0:00:02]}  d3+ {[%clk 0:00:10]} 66. Kf2 {[%clk 0:00:03]}  c2 {[%clk 0:00:10]} 67. Bb2 {[%clk 0:00:00]}  d2 {[%clk 0:00:10]} 0-1

[Event "December 5 Early 2023"]
[Site "https://www.chess.com"]
[Date "2023.12.05"]
[Round "1"]
[White "Niemann, Hans Moke"]
[Black "Yashmetov, Mikhail"]
[Result "1-0"]
[Board "5"]
[TimeControl "180+1"]
[WhiteFideId "2093596"]
[BlackFideId "24198900"]
[WhiteElo "3077"]
[BlackElo "2531"]
[WhiteTeam "USA"]
[BlackTeam "RUS"]
[WhiteClock "0:01:20"]
[BlackClock "0:00:00"]

1. e4 {[%clk 0:03:00]}  c6 {[%clk 0:02:48]} 2. Nf3 {[%clk 0:02:56]}  d5 {[%clk 0:02:43]} 3. d3 {[%clk 0:02:55]}  dxe4 {[%clk 0:02:39]} 4. dxe4 {[%clk 0:02:56]}  Qxd1+ {[%clk 0:02:39]} 5. Kxd1 {[%clk 0:02:56]}  f6 {[%clk 0:02:33]} 6. Be3 {[%clk 0:02:50]}  e5 {[%clk 0:02:31]} 7. Nfd2 {[%clk 0:02:44]}  Nd7 {[%clk 0:02:19]} 8. Nb3 {[%clk 0:02:43]}  Nb6 {[%clk 0:02:01]} 9. a4 {[%clk 0:02:35]}  Be6 {[%clk 0:01:56]} 10. N1d2 {[%clk 0:02:32]}  Nh6 {[%clk 0:01:44]} 11. a5 {[%clk 0:02:29]}  Nd7 {[%clk 0:01:42]} 12. f3 {[%clk 0:02:29]}  Nf7 {[%clk 0:01:41]} 13. Bc4 {[%clk 0:02:28]}  Bxc4 {[%clk 0:01:37]} 14. Nxc4 {[%clk 0:02:29]}  Nd6 {[%clk 0:01:37]} 15. Ncd2 {[%clk 0:02:30]}  Kf7 {[%clk 0:01:30]} 16. Ke2 {[%clk 0:02:29]}  Be7 {[%clk 0:01:28]} 17. Rhd1 {[%clk 0:02:24]}  Rhd8 {[%clk 0:01:27]} 18. Ra4 {[%clk 0:02:21]}  b5 {[%clk 0:01:01]} 19. axb6 {[%clk 0:02:20]}  axb6 {[%clk 0:01:02]} 20. Rda1 {[%clk 0:02:21]}  Rxa4 {[%clk 0:01:02]} 21. Rxa4 {[%clk 0:02:21]}  c5 {[%clk 0:01:01]} 22. Ra7 {[%clk 0:02:16]}  Ke6 {[%clk 0:00:51]} 23. c3 {[%clk 0:02:08]}  Nb5 {[%clk 0:00:44]} 24. Ra6 {[%clk 0:02:07]}  Nc7 {[%clk 0:00:41]} 25. Ra7 {[%clk 0:01:57]}  Nb5 {[%clk 0:00:38]} 26. Ra2 {[%clk 0:01:56]}  Nc7 {[%clk 0:00:35]} 27. Nc4 {[%clk 0:01:47]}  Ra8 {[%clk 0:00:34]} 28. Rxa8 {[%clk 0:01:45]}  Nxa8 {[%clk 0:00:35]} 29. Nbd2 {[%clk 0:01:40]}  Nc7 {[%clk 0:00:34]} 30. Na3 {[%clk 0:01:40]}  b5 {[%clk 0:00:31]} 31. c4 {[%clk 0:01:37]}  bxc4 {[%clk 0:00:25]} 32. Ndxc4 {[%clk 0:01:37]}  Na6 {[%clk 0:00:23]} 33. Nb5 {[%clk 0:01:35]}  Bd8 {[%clk 0:00:18]} 34. Kd2 {[%clk 0:01:32]}  Nb4 {[%clk 0:00:18]} 35. Kc3 {[%clk 0:01:32]}  Nc6 {[%clk 0:00:18]} 36. Kd3 {[%clk 0:01:30]}  Nd4 {[%clk 0:00:18]} 37. Nc3 {[%clk 0:01:29]}  Nb8 {[%clk 0:00:16]} 38. Na4 {[%clk 0:01:28]}  Be7 {[%clk 0:00:14]} 39. Bd2 {[%clk 0:01:26]}  Nbc6 {[%clk 0:00:14]} 40. Ncb6 {[%clk 0:01:25]}  Kd6 {[%clk 0:00:11]} 41. Kc4 {[%clk 0:01:24]}  Kc7 {[%clk 0:00:08]} 42. Nd5+ {[%clk 0:01:24]}  Kd6 {[%clk 0:00:07]} 43. Nxc5 {[%clk 0:01:24]}  Bf8 {[%clk 0:00:06]} 44. b4 {[%clk 0:01:24]}  Nd8 {[%clk 0:00:05]} 45. b5 {[%clk 0:01:23]}  N8e6 {[%clk 0:00:03]} 46. Bb4 {[%clk 0:01:22]}  Nc2 {[%clk 0:00:01]} 47. Nxe6+ {[%clk 0:01:20]}  Nxb4 {[%clk 0:00:00]} 48. Nxf8 {[%clk 0:01:20]} 1-0

[Event "December 5 Early 2023"]
[Site "https://www.chess.com"]
[Date "2023.12.05"]
[Round "1"]
[White "Gutierrez Olivares, Daniel"]
[Black "Bortnyk, Olexandr"]
[Result "0-1"]
[Board "6"]
[TimeControl "180+1"]
[WhiteFideId "2264005"]
[BlackFideId "14120828"]
[WhiteElo "2530"]
[BlackElo "3076"]
[WhiteTeam "ESP"]
[BlackTeam "UKR"]
[WhiteClock "0:00:00"]
[BlackClock "0:01:26"]

1. Nf3 {[%clk 0:03:00]}  Nf6 {[%clk 0:02:55]} 2. b3 {[%clk 0:03:00]}  d5 {[%clk 0:02:49]} 3. Bb2 {[%clk 0:03:01]}  Bf5 {[%clk 0:02:50]} 4. e3 {[%clk 0:02:58]}  e6 {[%clk 0:02:50]} 5. Bd3 {[%clk 0:02:58]}  Bxd3 {[%clk 0:02:48]} 6. cxd3 {[%clk 0:02:58]}  c5 {[%clk 0:02:47]} 7. d4 {[%clk 0:02:47]}  Nc6 {[%clk 0:02:47]} 8. O-O {[%clk 0:02:43]}  cxd4 {[%clk 0:02:45]} 9. Nxd4 {[%clk 0:02:43]}  Bd6 {[%clk 0:02:46]} 10. Nxc6 {[%clk 0:02:35]}  bxc6 {[%clk 0:02:47]} 11. Nc3 {[%clk 0:02:22]}  e5 {[%clk 0:02:45]} 12. Rc1 {[%clk 0:02:11]}  O-O {[%clk 0:02:45]} 13. Na4 {[%clk 0:02:10]}  Rc8 {[%clk 0:02:43]} 14. Nc5 {[%clk 0:02:03]}  Qe7 {[%clk 0:02:35]} 15. d4 {[%clk 0:01:56]}  e4 {[%clk 0:02:30]} 16. Qe2 {[%clk 0:01:42]}  h5 {[%clk 0:02:29]} 17. h3 {[%clk 0:01:41]}  Rfe8 {[%clk 0:02:25]} 18. Rc2 {[%clk 0:01:38]}  g5 {[%clk 0:02:23]} 19. Rfc1 {[%clk 0:01:04]}  g4 {[%clk 0:02:15]} 20. hxg4 {[%clk 0:00:50]}  Nxg4 {[%clk 0:02:09]} 21. g3 {[%clk 0:00:35]}  f5 {[%clk 0:02:09]} 22. Kg2 {[%clk 0:00:33]}  h4 {[%clk 0:02:07]} 23. Rh1 {[%clk 0:00:29]}  hxg3 {[%clk 0:02:06]} 24. fxg3 {[%clk 0:00:28]}  Qg5 {[%clk 0:02:06]} 25. Bc1 {[%clk 0:00:24]}  Rc7 {[%clk 0:01:58]} 26. Rh3 {[%clk 0:00:21]}  Rh7 {[%clk 0:01:55]} 27. Rxh7 {[%clk 0:00:18]}  Kxh7 {[%clk 0:01:56]} 28. Qe1 {[%clk 0:00:12]}  Kg6 {[%clk 0:01:50]} 29. Nb7 {[%clk 0:00:12]}  Rh8 {[%clk 0:01:49]} 30. Rxc6 {[%clk 0:00:04]}  Rh2+ {[%clk 0:01:35]} 31. Kg1 {[%clk 0:00:05]}  Qh5 {[%clk 0:01:25]} 32. Rxd6+ {[%clk 0:00:00]}  Kg5 {[%clk 0:01:26]} 0-1

[Event "December 5 Early 2023"]
[Site "https://www.chess.com"]
[Date "2023.12.05"]
[Round "1"]
[White "Korchynskyi, Mykola"]
[Black "Pranav, V"]
[Result "0-1"]
[Board "8"]
[TimeControl "180+1"]
[WhiteFideId "34138005"]
[BlackFideId "25060783"]
[WhiteElo "2529"]
[BlackElo "3073"]
[WhiteTeam "UKR"]
[BlackTeam "IND"]
[WhiteClock "0:00:00"]
[BlackClock "0:00:52"]

1. d4 {[%clk 0:03:00]}  Nf6 {[%clk 0:02:59]} 2. c4 {[%clk 0:02:59]}  e6 {[%clk 0:03:00]} 3. Nc3 {[%clk 0:03:00]}  Bb4 {[%clk 0:03:00]} 4. Qc2 {[%clk 0:03:00]}  O-O {[%clk 0:03:00]} 5. a3 {[%clk 0:02:59]}  Bxc3+ {[%clk 0:03:00]} 6. Qxc3 {[%clk 0:03:00]}  b6 {[%clk 0:03:01]} 7. Bg5 {[%clk 0:03:01]}  Bb7 {[%clk 0:03:01]} 8. e3 {[%clk 0:03:00]}  d6 {[%clk 0:03:02]} 9. Ne2 {[%clk 0:02:59]}  Nbd7 {[%clk 0:03:02]} 10. Qc2 {[%clk 0:02:59]}  h6 {[%clk 0:03:02]} 11. Bh4 {[%clk 0:02:59]}  c5 {[%clk 0:03:02]} 12. Rd1 {[%clk 0:02:58]}  Qc7 {[%clk 0:03:01]} 13. Nc3 {[%clk 0:02:49]}  a6 {[%clk 0:03:00]} 14. dxc5 {[%clk 0:02:36]}  bxc5 {[%clk 0:02:56]} 15. f3 {[%clk 0:02:34]}  d5 {[%clk 0:02:44]} 16. cxd5 {[%clk 0:02:28]}  exd5 {[%clk 0:02:43]} 17. Be2 {[%clk 0:02:26]}  Rfe8 {[%clk 0:02:43]} 18. Bf2 {[%clk 0:02:25]}  Rad8 {[%clk 0:02:40]} 19. O-O {[%clk 0:02:23]}  Ne5 {[%clk 0:02:35]} 20. Rd2 {[%clk 0:02:19]}  Qe7 {[%clk 0:02:20]} 21. Rfd1 {[%clk 0:02:17]}  Rc8 {[%clk 0:02:20]} 22. h3 {[%clk 0:02:12]}  Ng6 {[%clk 0:02:10]} 23. Kh1 {[%clk 0:02:03]}  Qe6 {[%clk 0:02:07]} 24. Qa4 {[%clk 0:02:01]}  Red8 {[%clk 0:02:03]} 25. Kg1 {[%clk 0:01:44]}  Rd6 {[%clk 0:01:57]} 26. Kh1 {[%clk 0:01:39]}  Rb6 {[%clk 0:01:54]} 27. Qc2 {[%clk 0:01:30]}  Ne7 {[%clk 0:01:52]} 28. Na4 {[%clk 0:01:29]}  Rbc6 {[%clk 0:01:52]} 29. Nc3 {[%clk 0:01:24]}  Rd6 {[%clk 0:01:50]} 30. Na4 {[%clk 0:01:18]}  Rdc6 {[%clk 0:01:49]} 31. Nc3 {[%clk 0:01:18]}  Rd8 {[%clk 0:01:48]} 32. Bh4 {[%clk 0:01:11]}  Rcc8 {[%clk 0:01:44]} 33. Bf2 {[%clk 0:01:02]}  Re8 {[%clk 0:01:39]} 34. Na4 {[%clk 0:01:02]}  Qc6 {[%clk 0:01:31]} 35. Nc3 {[%clk 0:00:58]}  Qd6 {[%clk 0:01:22]} 36. Qb1 {[%clk 0:00:52]}  Qe6 {[%clk 0:01:21]} 37. Qc2 {[%clk 0:00:51]}  Nf5 {[%clk 0:01:21]} 38. e4 {[%clk 0:00:29]}  dxe4 {[%clk 0:01:19]} 39. fxe4 {[%clk 0:00:29]}  Nxe4 {[%clk 0:01:19]} 40. Bf3 {[%clk 0:00:26]}  Nxf2+ {[%clk 0:01:07]} 41. Rxf2 {[%clk 0:00:26]}  Ne3 {[%clk 0:01:08]} 42. Qc1 {[%clk 0:00:07]}  Bxf3 {[%clk 0:01:07]} 43. Rxf3 {[%clk 0:00:06]}  Nxd1 {[%clk 0:01:06]} 44. Qxd1 {[%clk 0:00:07]}  Rcd8 {[%clk 0:01:05]} 45. Qa4 {[%clk 0:00:07]}  Rd2 {[%clk 0:01:05]} 46. Rg3 {[%clk 0:00:05]}  Qe5 {[%clk 0:00:58]} 47. Kh2 {[%clk 0:00:04]}  Rd3 {[%clk 0:00:56]} 48. Ne4 {[%clk 0:00:05]}  Rxg3 {[%clk 0:00:52]} 49. Nxg3 {[%clk 0:00:05]}  Re6 {[%clk 0:00:53]} 50. Qd7 {[%clk 0:00:00]}  Rg6 {[%clk 0:00:52]} 0-1

[Event "December 5 Early 2023"]
[Site "https://www.chess.com"]
[Date "2023.12.05"]
[Round "1"]
[White "So, Wesley"]
[Black "Derjabin, Ilja"]
[Result "1-0"]
[Board "9"]
[TimeControl "180+1"]
[WhiteFideId "5202213"]
[BlackFideId "14104768"]
[WhiteElo "3055"]
[BlackElo "2527"]
[WhiteTeam "USA"]
[BlackTeam "UKR"]
[WhiteClock "0:01:47"]
[BlackClock "0:00:00"]

1. b3 {[%clk 0:02:54]}  Nf6 {[%clk 0:02:59]} 2. Bb2 {[%clk 0:02:54]}  g6 {[%clk 0:02:57]} 3. Nf3 {[%clk 0:02:53]}  Bg7 {[%clk 0:02:57]} 4. c4 {[%clk 0:02:52]}  O-O {[%clk 0:02:57]} 5. g3 {[%clk 0:02:52]}  d6 {[%clk 0:02:57]} 6. Bg2 {[%clk 0:02:52]}  e5 {[%clk 0:02:57]} 7. O-O {[%clk 0:02:52]}  Re8 {[%clk 0:02:53]} 8. Nc3 {[%clk 0:02:51]}  Nc6 {[%clk 0:02:48]} 9. d3 {[%clk 0:02:48]}  Be6 {[%clk 0:02:41]} 10. Ng5 {[%clk 0:02:46]}  Bf5 {[%clk 0:02:37]} 11. e3 {[%clk 0:02:40]}  h6 {[%clk 0:02:30]} 12. Nge4 {[%clk 0:02:39]}  Nxe4 {[%clk 0:02:23]} 13. dxe4 {[%clk 0:02:40]}  Be6 {[%clk 0:02:18]} 14. Qe2 {[%clk 0:02:38]}  Qd7 {[%clk 0:02:17]} 15. Rfd1 {[%clk 0:02:38]}  Bg4 {[%clk 0:02:09]} 16. f3 {[%clk 0:02:37]}  Bh3 {[%clk 0:02:10]} 17. c5 {[%clk 0:02:34]}  Bxg2 {[%clk 0:02:07]} 18. Kxg2 {[%clk 0:02:34]}  Rad8 {[%clk 0:01:51]} 19. cxd6 {[%clk 0:02:33]}  cxd6 {[%clk 0:01:51]} 20. Rd2 {[%clk 0:02:33]}  a6 {[%clk 0:01:41]} 21. Rad1 {[%clk 0:02:31]}  Qe6 {[%clk 0:01:39]} 22. Nd5 {[%clk 0:02:26]}  Rc8 {[%clk 0:01:24]} 23. Nb6 {[%clk 0:02:25]}  Rcd8 {[%clk 0:01:24]} 24. Nd5 {[%clk 0:02:25]}  Rc8 {[%clk 0:01:18]} 25. Nb6 {[%clk 0:02:20]}  Rcd8 {[%clk 0:01:18]} 26. Ba3 {[%clk 0:02:20]}  Bf8 {[%clk 0:01:11]} 27. Qc4 {[%clk 0:02:19]}  Qf6 {[%clk 0:00:29]} 28. Nd5 {[%clk 0:02:16]}  Qg7 {[%clk 0:00:21]} 29. g4 {[%clk 0:02:05]}  Kh7 {[%clk 0:00:14]} 30. h4 {[%clk 0:02:03]}  Rc8 {[%clk 0:00:14]} 31. Nb6 {[%clk 0:01:51]}  Rc7 {[%clk 0:00:12]} 32. Bxd6 {[%clk 0:01:49]}  Bxd6 {[%clk 0:00:11]} 33. Rxd6 {[%clk 0:01:50]}  Qf8 {[%clk 0:00:03]} 34. Nd7 {[%clk 0:01:48]}  Rxd7 {[%clk 0:00:02]} 35. Rxd7 {[%clk 0:01:49]}  Re7 {[%clk 0:00:02]} 36. g5 {[%clk 0:01:45]}  hxg5 {[%clk 0:00:01]} 37. hxg5 {[%clk 0:01:46]}  Kg7 {[%clk 0:00:01]} 38. Qc5 {[%clk 0:01:45]}  Rxd7 {[%clk 0:00:01]} 39. Qxf8+ {[%clk 0:01:46]}  Kxf8 {[%clk 0:00:00]} 40. Rxd7 {[%clk 0:01:47]} 1-0